bitfinex/quotes_ETHUSD_20240709
["timestamp","ask_amount","ask_price","bid_price","bid_amount"]
[1720513009344,0.21177673,3079.7,3078.8,3.24792]
[1720513009500,0.84152217,3079.7,3078.7,1.694]
[1720513009706,1.97416424,3079.7,3078.7,1.694]
[1720513009902,0.21177673,3079.6,3078.7,1.694]
[1720513010407,0.21193436,3079.5,3078.7,1.694]
[1720513010608,0.21193436,3079.4,3078.3,8.19096]
[1720513010839,2.477,3079.2,3078.3,4.94248]
[1720513011021,0.21193436,3079.1,3078.3,4.94248]
[1720513011219,0.21193436,3079.1,3078.3,8.19096]
[1720513011404,0.21193436,3079.1,3078.4,3.31338443]
[1720513011752,0.21193436,3079.1,3078.6,3.24821]
[1720513012248,0.21193436,3079.1,3078.7,1.694]
[1720513012449,3.0,3079.7,3078.7,1.694]
[1720513012656,0.21192535,3079.6,3078.7,1.694]
[1720513012817,0.21192535,3079.5,3078.7,4.94202]
[1720513013153,0.2119455,3079.4,3078.8,3.248]
[1720513013314,0.2119455,3079.3,3078.8,3.248]
[1720513013513,3.0,3079.7,3078.8,3.248]
[1720513013747,2.4455,3079.8,3078.8,3.248]
[1720513013748,0.21193913,3079.6,3078.8,3.248]
[1720513013923,0.21193913,3079.5,3078.8,3.248]
[1720513014116,0.21193913,3079.4,3078.8,3.248]
[1720513014317,0.21193913,3079.3,3078.8,3.248]
[1720513014542,0.21193913,3079.2,3078.8,3.248]
[1720513014745,3.0,3079.7,3078.8,3.248]
[1720513015020,2.2719,3079.5,3078.4,3.2484]
[1720513015233,0.21193606,3079.4,3078.4,3.24837]
[1720513015521,0.21193606,3079.4,3078.5,3.24832]
[1720513016623,2.2719,3079.5,3078.5,3.24832]
[1720513016624,0.21201651,3079.3,3078.5,3.24832]
[1720513016839,0.21201651,3079.2,3078.2,1.694]
[1720513017040,0.21201651,3079.1,3078.2,1.694]
[1720513017364,2.2719,3079.5,3078.6,4.94216]
[1720513017655,0.21195955,3079.4,3078.6,4.94216]
[1720513019055,0.21195955,3079.4,3078.7,3.24811]
[1720513019658,0.21195955,3079.4,3078.7,3.24806]
[1720513019864,0.2119977,3079.3,3078.7,3.24806]
[1720513020065,2.2719,3079.5,3078.7,3.24806]
[1720513020066,0.2119977,3079.2,3078.8,0.06495315]
[1720513020252,2.2719,3079.5,3078.6,4.94214]
[1720513020465,0.21198256,3079.4,3078.6,1.694]
[1720513020659,0.21198256,3079.4,3078.6,4.94221]
[1720513020842,0.21198256,3079.4,3078.6,8.19042]
[1720513021175,0.21198256,3079.4,3078.6,4.94217]
[1720513021580,0.21198256,3079.4,3078.7,3.24805]
[1720513022346,2.2719,3079.5,3078.7,3.24805]
[1720513022676,0.34005838,3079.3,3078.6,1.694]
[1720513022841,0.21199941,3079.2,3078.6,1.694]
[1720513023471,0.21199941,3079.2,3078.2,1.694]
[1720513023642,0.38051418,3079.2,3078.2,1.694]
[1720513023833,0.21199941,3079.1,3078.2,1.694]
[1720513025134,0.21199941,3079.1,3077.8,1.694]
[1720513025135,2.4617,3079.0,3077.8,1.694]
[1720513025490,1.61254862,3078.9,3077.8,1.694]
[1720513025634,0.26736994,3078.9,3077.8,1.694]
[1720513025836,1.61251207,3078.9,3077.8,1.694]
[1720513026157,3.7239121,3078.8,3077.4,1.694]
[1720513026338,1.3451121,3078.7,3077.4,1.694]
[1720513026534,4.3451121,3078.7,3077.4,1.694]
[1720513026735,1.3451121,3078.6,3077.4,1.694]
[1720513026937,4.3451121,3078.6,3077.6,3.24926]
[1720513027177,4.3451121,3078.6,3077.8,1.694]
[1720513027178,1.3451121,3078.5,3077.8,1.694]
[1720513027380,1.34509279,3078.5,3077.8,1.694]
[1720513027581,0.21222852,3078.4,3077.8,1.694]
[1720513027875,3.0,3078.7,3077.8,1.694]
[1720513027876,0.21222852,3078.3,3077.8,1.694]
[1720513028093,0.21222852,3078.2,3077.8,1.694]
[1720513028238,0.21222852,3078.1,3077.8,1.694]
[1720513028436,0.21222852,3078.0,3077.8,1.75897654]
[1720513028657,7.36,3078.6,3077.8,4.94307]
[1720513028950,0.21218198,3078.5,3077.8,4.94307]
[1720513029167,0.21217888,3078.4,3077.8,1.694]
[1720513029453,0.21217888,3078.3,3077.8,1.694]
[1720513029663,0.21217888,3078.2,3077.8,1.694]
[1720513029833,0.21217888,3078.1,3077.8,1.694]
[1720513030031,0.21217888,3078.0,3077.8,1.694]
[1720513030235,7.36,3078.6,3077.8,1.694]
[1720513030479,1.34508762,3078.5,3077.8,1.694]
[1720513031469,7.36,3078.6,3077.9,3.24896]
[1720513031470,0.21219793,3078.4,3077.9,3.24896]
[1720513031672,0.21219793,3078.3,3077.9,3.24896]
[1720513031878,0.21219793,3078.2,3077.8,1.694]
[1720513032084,0.21223001,3078.1,3077.8,1.694]
[1720513032285,0.21223001,3078.0,3077.8,1.694]
[1720513032577,1.13298862,3078.5,3077.8,1.694]
[1720513032785,0.84929886,3078.4,3077.8,1.694]
[1720513033083,0.21223806,3078.3,3077.4,1.694]
[1720513033258,1.13298862,3078.5,3077.4,1.694]
[1720513033259,0.21223806,3078.2,3077.4,1.694]
[1720513033456,1.13298862,3078.5,3077.4,1.694]
[1720513033457,0.21223806,3078.1,3077.4,1.694]
[1720513033756,0.21223806,3078.0,3077.4,1.694]
[1720513033956,0.21223806,3077.9,3077.4,1.694]
[1720513034155,1.13298862,3078.5,3077.4,1.694]
[1720513034401,1.34527412,3078.5,3077.4,1.694]
[1720513034592,0.87052741,3078.4,3077.4,1.694]
[1720513034773,0.2122855,3078.3,3077.4,1.694]
[1720513035307,0.21228671,3078.2,3077.4,4.94343]
[1720513035620,1.13292665,3078.5,3077.4,4.94343]
[1720513035621,0.21228671,3078.1,3077.4,4.94343]
[1720513035776,0.21228671,3078.0,3077.4,4.94343]
[1720513035985,0.21228671,3077.9,3077.4,4.94343]
[1720513036164,1.13292665,3078.5,3077.4,4.94343]
[1720513036508,1.34521088,3078.5,3077.4,4.94343]
[1720513036706,1.34521088,3078.5,3077.4,1.694]
[1720513036707,2.49450355,3078.5,3077.4,1.694]
[1720513036860,2.4246,3078.3,3077.1,6.49953]
[1720513037061,1.3451396,3078.2,3077.2,3.24969]
[1720513037380,4.3451396,3078.2,3077.2,3.24969]
[1720513037590,0.21228423,3078.1,3077.2,3.24969]
[1720513037792,0.21228423,3078.1,3077.0,4.94384]
[1720513037958,0.55232001,3078.1,3077.0,4.94384]
[1720513038163,0.21228423,3078.0,3077.0,4.94382]
[1720513038364,0.34003578,3078.1,3077.0,1.694]
[1720513038559,0.33400358,3078.0,3077.0,1.694]
[1720513038877,3.34003578,3078.1,3077.0,1.694]
[1720513039062,0.21234218,3078.0,3077.0,1.694]
[1720513039456,0.21234218,3077.9,3077.0,1.694]
[1720513039709,0.21234218,3077.8,3077.0,1.694]
[1720513040013,0.21234218,3077.7,3076.6,1.694]
[1720513040211,0.21234218,3077.6,3076.6,1.694]
[1720513040509,0.21226421,3077.5,3076.6,1.694]
[1720513040803,3.5906056,3077.8,3076.6,4.94432]
[1720513041004,0.21225462,3077.7,3076.6,1.694]
[1720513041467,0.21225462,3077.7,3076.6,4.94426]
[1720513041663,3.0,3077.8,3076.7,3.25023]
[1720513041890,0.21224756,3077.7,3076.7,3.25023]
[1720513042086,0.21224756,3077.6,3076.7,3.25023]
[1720513042371,3.0,3077.8,3076.7,3.25023]
[1720513042597,0.21222925,3077.7,3076.7,3.25023]
[1720513043383,0.21222925,3077.7,3076.9,3.25]
[1720513043717,3.0,3077.8,3077.0,0.06499311]
[1720513043885,0.34003578,3078.1,3077.1,3.24978]
[1720513044091,0.34003578,3078.1,3076.9,0.06499082]
[1720513044092,0.34003578,3078.1,3077.3,3.2495]
[1720513044320,0.34003578,3078.1,3077.4,4.94343]
[1720513044618,0.34003578,3078.1,3077.4,1.75898358]
[1720513044817,0.34003578,3078.1,3078.0,3.24886]
[1720513045276,0.34003578,3078.1,3077.8,1.694]
[1720513045633,0.34003578,3078.1,3077.9,3.24889]
[1720513045817,0.34003578,3078.1,3077.8,1.694]
[1720513046317,0.34003578,3078.1,3077.7,3.24908]
[1720513046527,0.34003578,3078.1,3077.5,5.65343]
[1720513046681,0.34003578,3078.1,3077.5,5.65341]
[1720513046883,0.34003578,3078.1,3077.5,3.24931]
[1720513047081,2.66473578,3078.1,3077.1,5.3734]
[1720513047392,2.66473578,3078.1,3077.2,3.24964]
[1720513049621,2.66473578,3078.1,3077.0,4.94385]
[1720513049622,2.93120936,3078.1,3077.0,4.94385]
[1720513049828,0.2121241,3078.0,3077.0,1.694]
[1720513049979,0.31433335,3077.9,3076.9,3.25001]
[1720513050181,3.0,3078.0,3076.9,3.25001]
[1720513050525,0.21208003,3077.9,3076.9,3.25001]
[1720513051322,3.0,3078.0,3076.9,3.25001]
[1720513051526,3.56647358,3078.0,3076.9,3.25001]
[1720513051723,3.56647358,3078.0,3076.8,3.25007]
[1720513051724,3.56647358,3078.0,3077.0,3.2499]
[1720513051929,3.0,3078.0,3077.0,3.2499]
[1720513052131,3.0,3078.0,3077.0,4.9439]
[1720513053794,2.66473578,3078.1,3077.4,3.24949]
[1720513054327,2.66473578,3078.1,3077.2,6.49926]
[1720513054530,2.66473578,3078.1,3077.3,3.24957]
[1720513056036,0.34003578,3078.1,3077.5,3.24935]
[1720513057353,0.34003578,3078.1,3077.3,6.49906]
[1720513057668,0.34003578,3078.1,3077.4,3.24949]
[1720513057957,0.34003578,3078.1,3077.4,3.24943]
[1720513058193,0.34003578,3078.1,3077.8,1.694]
[1720513058478,7.36,3078.9,3078.1,3.24874]
[1720513058778,7.36,3079.3,3078.4,1.694]
[1720513059077,12.49,3079.8,3078.6,3.24822]
[1720513059078,0.33997513,3078.8,3078.6,3.24822]
[1720513059221,2.3682,3079.5,3078.8,3.24801]
[1720513059559,0.33997885,3079.2,3078.8,4.94201]
[1720513059922,0.33997885,3079.2,3078.9,3.24789]
[1720513060422,0.33997885,3079.2,3079.0,3.24776]
[1720513061673,0.33997885,3079.2,3079.1,3.2477]
[1720513061827,0.33997885,3079.2,3079.1,6.4954]
[1720513062522,2.4163,3080.4,3079.1,9.7431]
[1720513062724,7.36,3080.6,3080.0,4.94067]
[1720513062970,9.6474,3081.1,3080.0,4.94067]
[1720513063126,0.44013103,3081.0,3080.0,4.94067]
[1720513063334,0.21139103,3080.9,3080.0,1.694]
[1720513064070,0.56869007,3081.0,3079.6,4.94116]
[1720513064236,0.21149661,3080.9,3079.6,4.94116]
[1720513064576,0.21149661,3080.9,3079.6,4.94107]
[1720513064736,0.21149661,3080.9,3079.7,3.24705]
[1720513065170,0.21149661,3080.9,3079.6,1.694]
[1720513065348,0.21149661,3080.9,3079.2,7.94157]
[1720513065534,2.3345,3080.7,3079.3,3.24747]
[1720513065745,0.21159544,3080.6,3079.3,3.24747]
[1720513065939,0.21159544,3080.6,3079.2,1.694]
[1720513066164,3.21159544,3080.6,3079.2,1.694]
[1720513066373,0.76620498,3080.5,3079.2,4.94159]
[1720513066550,0.55460954,3080.5,3079.3,3.24748]
[1720513067646,3.0,3080.6,3079.4,0.06494273]
[1720513067845,2.3345,3080.7,3079.9,3.24678]
[1720513068159,2.3345,3080.7,3079.9,6.49357]
[1720513068356,2.3345,3080.7,3079.7,3.24699]
[1720513068577,2.3345,3080.7,3079.6,1.694]
[1720513068759,0.23345,3080.6,3079.3,3.24745]
[1720513069171,0.23345,3080.6,3079.2,1.694]
[1720513069381,3.23345,3080.6,3079.2,1.694]
[1720513069884,0.21173797,3080.5,3079.2,4.94159]
[1720513070092,0.3445188,3080.4,3079.2,4.94159]
[1720513070449,0.3445188,3080.4,3079.2,8.18918]
[1720513071149,0.3445188,3080.4,3079.2,1.694]
[1720513071343,0.3445188,3080.4,3079.2,4.94159]
[1720513072028,0.3445188,3080.4,3078.8,1.694]
[1720513072179,2.3385,3080.3,3078.8,4.942]
[1720513072346,2.3385,3080.3,3079.0,3.24779]
[1720513072347,0.26830188,3080.2,3079.0,3.24779]
[1720513072849,3.26830188,3080.2,3079.0,3.24779]
[1720513074283,3.26830188,3080.2,3079.2,3.24756]
[1720513074482,3.26830188,3080.2,3079.2,8.18908]
[1720513074674,3.26830188,3080.2,3079.3,3.24747]
[1720513075046,3.26830188,3080.2,3079.4,3.24736]
[1720513075247,2.3385,3080.3,3079.6,3.24713]
[1720513075452,5.3385,3080.3,3079.6,3.24713]
[1720513076002,0.3445188,3080.4,3079.7,3.24704]
[1720513076297,7.36,3080.6,3079.9,3.24677]
[1720513076507,2.4619,3080.7,3079.9,3.24677]
[1720513077381,2.4619,3080.7,3080.0,3.24674]
[1720513077585,7.69995007,3081.0,3080.0,3.24674]
[1720513077755,7.69995007,3081.0,3080.3,3.24643]
[1720513078267,9.6723,3081.4,3080.6,3.24611]
[1720513078474,2.3123,3081.4,3080.6,3.24611]
[1720513078687,2.54353,3081.4,3080.6,3.24611]
[1720513078895,2.54353,3081.4,3080.5,3.31104797]
[1720513079095,0.33991264,3081.7,3080.8,1.694]
[1720513079261,0.33991264,3081.7,3081.2,3.24542]
[1720513079461,2.3769,3081.8,3081.0,3.24563]
[1720513079678,2.3769,3081.8,3081.1,3.24555]
[1720513080186,7.36,3082.1,3081.2,8.18478]
[1720513080374,0.736,3082.0,3081.2,4.93938]
[1720513080585,9.7363,3082.5,3081.3,3.24533]
[1720513080778,0.33984981,3082.3,3081.3,3.24533]
[1720513080978,0.33984981,3082.3,3081.2,4.93947]
[1720513081315,0.33984981,3082.3,3081.3,3.31020317]
[1720513081628,1.955,3084.3,3082.5,3.24403]
[1720513081822,1.955,3084.3,3082.8,4.93778]
[1720513081977,1.955,3084.3,3082.6,0.06487038]
[1720513081978,0.77385366,3084.2,3083.2,1.694]
[1720513082183,0.33974366,3084.2,3083.2,1.694]
[1720513082579,0.33974366,3084.2,3082.8,1.694]
[1720513082822,0.33974366,3084.2,3082.5,3.24411]
[1720513082823,5.384,3084.1,3082.5,3.24411]
[1720513083028,0.57237437,3084.0,3082.5,6.48815]
[1720513083229,5.384,3083.9,3082.4,1.694]
[1720513083930,0.57237437,3084.0,3082.2,0.0648801]
[1720513083931,10.7701,3083.8,3082.2,0.0648801]
[1720513084080,10.7701,3083.8,3082.0,4.93862]
[1720513084081,1.07701,3083.7,3082.3,3.24432]
[1720513084614,1.07701,3083.7,3082.3,3.2443]
[1720513085903,1.07701,3083.7,3082.5,3.24408]
[1720513086105,1.07701,3083.7,3082.7,3.24389]
[1720513086419,0.646311,3083.6,3082.8,1.694]
[1720513086581,2.3861,3083.8,3082.8,1.694]
[1720513087416,2.3861,3083.8,3082.5,3.24403]
[1720513087417,2.3861,3083.8,3082.4,1.694]
[1720513087604,2.3861,3083.8,3082.4,4.93821]
[1720513087805,2.3861,3083.8,3082.5,3.24405]
[1720513088115,0.23861,3083.7,3082.5,3.24405]
[1720513088481,3.23861,3083.7,3082.5,3.24405]
[1720513088877,3.23861,3083.7,3082.7,3.24388]
[1720513089127,3.0,3083.7,3082.9,3.24369]
[1720513089283,0.33974366,3084.2,3082.8,3.2437]
[1720513089478,0.33974366,3084.2,3083.1,3.24341]
[1720513089821,0.33974366,3084.2,3083.2,3.24335]
[1720513090026,0.61887803,3084.2,3083.4,3.24315]
[1720513090208,0.33974366,3084.2,3083.6,3.24295]
[1720513090603,0.33974366,3084.2,3083.3,2.253]
[1720513090985,0.33974366,3084.2,3083.4,3.24316]
[1720513091184,0.33974366,3084.2,3083.7,3.24276]
[1720513091630,0.33974366,3084.2,3083.7,6.48553]
[1720513091797,7.36,3084.6,3083.7,6.48553]
[1720513091798,7.36,3084.6,3083.8,3.24273]
[1720513092001,7.36,3084.6,3083.9,3.24262]
[1720513092220,9.8229,3085.0,3084.0,0.06484581]
[1720513092391,9.8229,3085.0,3084.1,3.24238]
[1720513092586,9.8229,3085.0,3084.0,3.24247]
[1720513092587,0.33960633,3084.9,3084.0,3.24247]
[1720513093530,0.33960633,3084.9,3083.8,2.253]
[1720513093991,1.35585696,3084.9,3083.5,3.24304]
[1720513094187,0.33960633,3084.9,3083.5,3.243]
[1720513094389,3.33960633,3084.9,3083.6,3.24287]
[1720513094921,3.33960633,3084.9,3083.7,3.24283]
[1720513095125,3.33960633,3084.9,3083.5,3.24298]
[1720513095322,3.91985696,3084.9,3083.5,3.24298]
[1720513095522,3.33960633,3084.9,3083.7,3.24285]
[1720513095723,3.33960633,3084.9,3083.5,3.24298]
[1720513095911,3.33960633,3084.9,3083.6,3.24289]
[1720513096117,3.33960633,3084.9,3083.7,3.24284]
[1720513096788,3.33960633,3084.9,3083.7,6.48563]
[1720513097190,3.33960633,3084.9,3083.3,2.253]
[1720513097489,3.33960633,3084.9,3083.7,3.24276]
[1720513097720,3.33960633,3084.9,3083.5,3.24302]
[1720513097904,3.33960633,3084.9,3083.7,3.24277]
[1720513098109,3.33960633,3084.9,3083.8,3.24274]
[1720513098635,3.91985696,3084.9,3083.3,3.24321]
[1720513098928,3.91985696,3084.9,3083.3,3.24326]
[1720513100100,3.91985696,3084.9,3082.8,5.253]
[1720513100101,3.429,3084.7,3082.8,2.253]
[1720513100303,2.4792,3084.5,3082.8,2.253]
[1720513100807,5.4792,3084.5,3082.8,2.253]
[1720513101336,3.429,3084.3,3082.8,2.253]
[1720513101494,3.0,3084.2,3082.8,2.253]
[1720513102636,3.0,3084.3,3082.8,5.49679]
[1720513102810,3.70430863,3084.3,3083.0,3.24358]
[1720513103014,3.70430863,3084.3,3082.8,2.253]
[1720513103825,3.70430863,3084.3,3082.4,6.48832]
[1720513103826,2.3913,3084.1,3082.3,5.49726]
[1720513104038,5.3913,3084.1,3082.4,3.24418]
[1720513104248,1.40153,3084.0,3082.4,3.24418]
[1720513104534,4.40153,3084.0,3082.4,3.24418]
[1720513105037,4.40153,3084.0,3082.3,5.49722]
[1720513105533,4.40153,3084.0,3082.4,3.2442]
[1720513106100,4.40153,3084.0,3082.3,2.253]
[1720513106336,0.679283,3083.9,3082.3,2.253]
[1720513106523,2.3805,3083.8,3081.8,5.49784]
[1720513106729,5.3805,3083.8,3081.8,5.49784]
[1720513106899,5.3805,3083.8,3081.8,2.253]
[1720513106900,5.384,3083.4,3081.8,2.253]
[1720513107109,10.6879,3083.3,3081.3,5.49835]
[1720513107312,10.6879,3083.3,3081.4,3.24524]
[1720513107529,10.6879,3083.3,3081.3,5.49835]
[1720513107742,10.6879,3083.3,3081.4,3.24524]
[1720513108064,11.0275708,3083.3,3081.4,3.24524]
[1720513108213,1.10275708,3083.2,3081.4,3.24524]
[1720513109133,1.10275708,3083.2,3081.7,3.24486]
[1720513109534,1.10275708,3083.2,3081.3,2.253]
[1720513109739,2.392,3083.1,3081.3,2.253]
[1720513110041,4.347,3083.1,3081.3,2.253]
[1720513110214,6.30027571,3083.0,3081.3,2.253]
[1720513110611,3.0,3082.9,3081.3,2.253]
[1720513112417,2.3334,3082.8,3080.8,2.253]
[1720513112623,7.7174,3082.8,3080.8,2.253]
[1720513112851,4.07174,3082.7,3080.8,5.49888]
[1720513113025,5.384,3082.5,3080.8,2.253]
[1720513113237,7.7614,3082.5,3080.8,2.253]
[1720513113415,3.0,3082.4,3080.8,2.253]
[1720513113617,1.07614,3082.3,3080.8,2.31790745]
[1720513113819,3.0,3082.4,3080.9,3.24579]
[1720513114128,2.3774,3082.5,3081.0,0.06490404]
[1720513114315,2.3774,3082.5,3081.0,3.31052404]
[1720513114512,0.53774,3082.4,3081.0,3.31052404]
[1720513114717,3.53774,3082.4,3081.0,3.31052404]
[1720513115020,3.0,3082.4,3081.0,0.06490404]
[1720513115260,2.3774,3082.5,3080.9,3.24573]
[1720513115611,2.4112,3082.4,3080.8,2.253]
[1720513115816,2.4112,3082.1,3080.8,2.253]
[1720513116041,5.8402,3082.1,3080.3,5.56427562]
[1720513116254,8.8402,3082.1,3080.3,5.56427562]
[1720513117359,8.8402,3082.1,3080.3,5.49936]
[1720513117658,0.88402,3082.0,3080.3,5.49936]
[1720513117965,3.88402,3082.0,3080.3,5.49936]
[1720513118174,3.88402,3082.0,3080.3,2.253]
[1720513118175,2.457,3081.9,3080.3,2.253]
[1720513118392,3.0,3081.9,3080.3,2.253]
[1720513118672,2.4942,3081.7,3079.8,2.253]
[1720513118963,5.934,3081.8,3079.8,2.253]
[1720513118964,5.9232,3081.5,3079.8,2.253]
[1720513119162,2.4942,3081.4,3079.8,2.253]
[1720513119372,5.4942,3081.4,3079.8,2.253]
[1720513120141,2.4942,3081.3,3079.8,2.253]
[1720513120545,2.4942,3081.3,3079.8,5.49992]
[1720513120729,0.54942,3081.2,3079.8,5.5648478]
[1720513120958,3.54942,3081.2,3079.8,2.253]
[1720513123157,2.3078,3081.1,3079.8,2.253]
[1720513123361,0.585722,3081.0,3079.8,2.253]
[1720513123751,3.585722,3081.0,3079.8,5.49994]
[1720513123948,3.0,3081.0,3079.8,5.49994]
[1720513124149,2.64748552,3081.1,3079.8,5.49994]
[1720513124150,2.64748552,3081.1,3080.2,3.24653]
[1720513124861,2.21681916,3081.1,3080.0,3.24668]
[1720513125060,2.21681916,3081.1,3080.1,3.24663]
[1720513125446,2.43850108,3081.1,3079.8,2.253]
[1720513125653,2.09881556,3081.1,3079.8,5.49996]
[1720513126080,0.33966359,3081.0,3079.8,5.49996]
[1720513126260,0.33966359,3081.0,3079.8,2.253]
[1720513126459,0.24384792,3080.9,3079.8,2.253]
[1720513126686,0.24384792,3080.9,3079.7,1.693]
[1720513127500,0.24384792,3080.9,3079.7,4.94001]
[1720513127780,0.33966359,3081.0,3079.8,3.24695]
[1720513128168,0.33966359,3081.0,3079.7,1.693]
[1720513130554,2.3174,3080.9,3079.7,1.693]
[1720513131008,5.3174,3080.9,3079.7,1.693]
[1720513131173,5.3174,3080.9,3079.3,1.693]
[1720513131492,5.3174,3080.9,3078.3,3.24849]
[1720513131493,2.93940636,3080.8,3078.9,4.94084]
[1720513131652,7.7577,3080.6,3078.9,1.693]
[1720513131855,1.07577,3080.5,3079.1,3.2476]
[1720513132079,3.0,3080.5,3079.3,1.693]
[1720513132326,5.3737,3080.6,3079.4,0.06494073]
[1720513132641,3.0,3080.5,3079.4,0.06494073]
[1720513132941,2.3737,3080.6,3079.4,0.06494073]
[1720513133242,0.46904768,3080.5,3079.4,0.06494073]
[1720513133447,3.46904768,3080.5,3079.4,0.06494073]
[1720513133749,3.0,3080.5,3079.4,0.06494073]
[1720513134040,3.0,3080.5,3079.6,3.24715]
[1720513134240,2.3737,3080.6,3079.6,3.31208313]
[1720513134600,2.3737,3080.6,3079.6,3.24715]
[1720513134834,2.3737,3080.6,3079.3,4.94042]
[1720513135039,2.3737,3080.6,3079.3,1.693]
[1720513135238,7.99507,3080.6,3079.3,1.693]
[1720513135444,3.0,3080.5,3079.3,1.693]
[1720513135603,3.0,3080.5,3078.9,1.693]
[1720513135947,2.3676,3080.3,3078.9,1.693]
[1720513136112,5.3676,3080.3,3078.9,4.693]
[1720513136450,2.4648,3080.2,3078.0,2.4544]
[1720513136611,0.54648,3080.1,3078.6,3.24817]
[1720513136802,0.54648,3080.1,3078.6,6.49633]
[1720513137129,3.54648,3080.1,3078.7,3.24805]
[1720513137434,3.54648,3080.1,3078.8,3.24799]
[1720513137635,3.54648,3080.1,3078.8,3.31293959]
[1720513137850,3.54648,3080.1,3078.8,3.24799]
[1720513138003,3.54648,3080.1,3078.9,3.24787]
[1720513138204,3.54648,3080.1,3079.0,0.06494698]
[1720513138435,2.4648,3080.2,3079.3,1.693]
[1720513138707,2.4648,3080.2,3079.4,0.0649393]
[1720513139141,2.4648,3080.2,3079.3,1.693]
[1720513140304,2.4648,3080.2,3078.9,1.693]
[1720513140562,2.4648,3080.2,3078.9,4.94081]
[1720513140702,2.4648,3080.2,3079.1,3.24764]
[1720513141541,2.4648,3080.2,3079.1,3.31258193]
[1720513141864,2.4648,3080.2,3079.2,0.06494193]
[1720513142005,2.4648,3080.2,3079.5,3.24727]
[1720513142210,2.4648,3080.2,3079.5,3.31220551]
[1720513142421,2.4648,3080.2,3079.5,0.06493551]
[1720513142822,2.4648,3080.2,3079.3,3.31231592]
[1720513143026,2.4648,3080.2,3079.4,3.24738]
[1720513143319,2.4648,3080.2,3079.3,3.31231592]
[1720513143520,2.4648,3080.2,3079.4,3.24734]
[1720513144245,0.33976582,3080.4,3079.7,3.24706]
[1720513144448,0.33976582,3080.4,3079.8,0.06492912]
[1720513144614,7.36,3080.5,3080.3,3.24637]
[1720513144819,14.8604,3081.3,3080.3,3.24637]
[1720513144820,7.36,3081.2,3080.3,3.24637]
[1720513145125,2.3704,3081.3,3080.4,3.31114724]
[1720513145326,2.3704,3081.3,3079.8,0.55]
[1720513145327,2.3704,3081.3,3080.2,3.24653]
[1720513145507,2.3704,3081.3,3080.1,3.24657]
[1720513145724,3.37741715,3081.3,3079.7,3.247]
[1720513146055,6.37741715,3081.3,3079.6,3.24711]
[1720513146252,6.37741715,3081.3,3079.6,3.24708]
[1720513146253,3.37741715,3081.3,3079.6,3.24708]
[1720513146413,3.0,3081.2,3079.2,3.06492928]
[1720513146617,0.63774172,3081.1,3079.4,3.24728]
[1720513146919,2.4475,3081.0,3079.3,3.24748]
[1720513147125,0.30852417,3080.9,3079.3,3.24748]
[1720513147333,0.30852417,3080.9,3079.4,3.24737]
[1720513147660,3.30852417,3080.9,3079.5,0.06493642]
[1720513147857,3.30852417,3080.9,3079.4,3.24737]
[1720513147858,3.30852417,3080.9,3079.6,3.24716]
[1720513148157,3.30852417,3080.9,3079.0,2.3827]
[1720513148158,3.30852417,3080.9,3079.7,0.06493361]
[1720513148360,3.0,3080.9,3079.2,0.06492716]
[1720513148517,2.4475,3081.0,3079.8,3.24695]
[1720513148716,2.4475,3081.0,3080.1,3.24658]
[1720513148920,2.4475,3081.0,3080.2,3.24646]
[1720513149116,2.4475,3081.0,3079.4,0.06491898]
[1720513149374,2.4475,3081.0,3079.7,3.247]
[1720513149668,2.4475,3081.0,3079.4,3.24738]
[1720513149669,2.69225,3081.0,3079.4,3.24738]
[1720513149822,3.0,3080.9,3079.4,3.24738]
[1720513150159,3.0,3080.9,3079.5,0.0649358]
[1720513150328,3.0,3080.9,3079.8,3.24693]
[1720513151101,3.0,3080.9,3079.0,5.63048]
[1720513151102,3.0,3080.9,3079.9,3.24676]
[1720513151367,3.0,3080.9,3079.3,0.06492644]
[1720513151368,2.4475,3081.0,3080.2,3.24648]
[1720513151832,2.4475,3081.0,3080.3,0.06491896]
[1720513153138,2.4475,3081.0,3080.2,3.24648]
[1720513153356,2.4475,3081.0,3080.3,0.06491896]
[1720513153670,2.4475,3081.0,3079.8,3.24689]
[1720513153849,2.69225,3081.0,3079.8,3.24689]
[1720513154055,2.4475,3081.0,3079.8,3.24689]
[1720513154239,2.4475,3081.0,3080.0,3.24674]
[1720513154438,2.4475,3081.0,3080.1,0.064924]
[1720513154636,3.0,3081.3,3080.1,0.064924]
[1720513154637,3.0,3081.3,3080.4,3.2463]
[1720513154855,3.33977149,3081.4,3080.4,3.2463]
[1720513155054,0.21161125,3081.3,3080.4,3.2463]
[1720513155236,0.21161125,3081.3,3080.2,3.24647]
[1720513155468,1.53039952,3081.3,3080.0,3.24671]
[1720513155650,0.21161125,3081.2,3080.0,3.24671]
[1720513156495,0.21161125,3081.2,3080.1,3.24663]
[1720513156841,0.21161125,3081.1,3080.1,3.24663]
[1720513157155,3.33977149,3081.4,3080.2,0.06492106]
[1720513157351,0.21164021,3081.3,3080.2,0.06492106]
[1720513157680,0.21164021,3081.3,3080.1,3.24663]
[1720513157844,0.21164021,3081.3,3080.2,3.31137139]
[1720513158181,0.21164021,3081.3,3080.3,3.31134888]
[1720513158480,0.21164021,3081.3,3080.0,6.49337]
[1720513158780,0.21165343,3081.2,3080.0,6.49335]
[1720513158946,0.21165343,3081.2,3080.0,3.24666]
[1720513159343,2.4239,3081.1,3079.8,3.24689]
[1720513159669,0.21165343,3081.0,3079.9,3.0]
[1720513159878,0.21165343,3081.0,3079.9,6.24682]
[1720513160239,0.21165343,3081.0,3079.9,3.0]